bitfinex-derivatives/quotes_BNBF0:USTF0_20250904
["timestamp","ask_amount","ask_price","bid_price","bid_amount"]
[1757001932425,0.20590254,845.19,844.58,0.7964408]
[1757001932625,0.20590254,845.19,843.46,0.20591229]
[1757001932626,0.20590254,845.19,844.6,0.7964408]
[1757001933025,0.20590254,845.19,844.59,0.7964408]
[1757001934032,0.20590254,845.19,844.63,0.7964408]
[1757001934232,0.20590254,845.19,844.64,0.7964408]
[1757001934628,0.20590254,845.19,844.65,0.7964408]
[1757001935733,0.20590254,845.19,844.63,0.7964408]
[1757001936129,0.20590254,845.19,844.62,0.7964408]
[1757001937335,0.20590254,845.19,844.63,0.7964408]
[1757001937732,0.20590254,845.19,844.62,0.7964408]
[1757001939439,0.20590254,845.19,844.63,0.7964408]
[1757001941237,0.20590254,845.19,844.64,0.7964408]
[1757001941838,0.20590254,845.19,844.57,0.7964408]
[1757001942238,0.20590254,845.19,844.58,0.7964408]
[1757001943440,0.20590254,845.19,844.59,0.7964408]
[1757001944345,0.20590254,845.19,844.6,0.7964408]
[1757001945447,0.20590254,845.19,844.62,0.7964408]
[1757001946242,0.20590254,845.19,844.61,0.7964408]
[1757001946445,0.20590254,845.19,844.57,0.7964408]
[1757001947246,0.20590254,845.19,844.58,0.7964408]
[1757001947645,0.20590254,845.19,844.59,0.7964408]
[1757001948245,0.20590254,845.19,844.6,0.7964408]
[1757001949546,0.20590254,845.19,844.62,0.7964408]
[1757001950249,0.20590254,845.19,843.46,0.20591229]
[1757001950250,0.20590254,845.19,844.66,0.7964408]
[1757001951047,0.20590254,845.19,844.67,0.7964408]
[1757001951347,0.20590254,845.19,844.57,0.7964408]
[1757001951544,0.20590254,845.19,844.49,0.7964408]
[1757001951849,0.20590254,845.19,844.46,0.7964408]
[1757001952245,0.20590254,845.19,843.46,0.20591229]
[1757001952246,0.20590254,845.19,844.45,0.7964408]
[1757001955247,0.20590254,845.19,844.46,0.7964408]
[1757001956354,0.20590254,845.19,844.49,0.7964408]
[1757001957456,0.20590254,845.19,844.51,0.7964408]
[1757001959154,0.20590254,845.19,844.5,0.7964408]
[1757001960058,0.20590254,845.19,844.52,0.7964408]
[1757001960458,0.20590254,845.19,844.5,0.7964408]
[1757001961255,0.20590254,845.19,844.55,0.7964408]
[1757001961456,0.20590254,845.19,844.56,0.7964408]
[1757001961659,0.20590254,845.19,844.39,1.061921]
[1757001961660,0.20590254,845.19,844.57,0.7964408]
[1757001962459,1.00394169,845.19,844.57,0.7964408]
[1757001962861,1.00394169,845.19,844.58,0.7964408]
[1757001963056,1.00394169,845.19,843.46,0.20591229]
[1757001963057,0.79803915,845.16,844.59,0.7964408]
[1757001963356,0.79803915,845.17,844.59,0.7964408]
[1757001965256,0.20590254,845.19,844.57,0.7964408]
[1757001967060,0.20590254,845.19,844.58,0.7964408]
[1757001968261,0.20590254,845.19,844.57,0.7964408]
[1757001968556,0.20590254,845.19,844.58,0.7964408]
[1757001969362,0.20590254,845.19,844.57,0.7964408]
[1757001970061,0.20590254,845.19,844.58,0.7964408]
[1757001970358,0.20590254,845.19,844.57,0.7964408]
[1757001975062,0.20590254,845.19,844.55,0.7964408]
[1757001975266,0.20590254,845.19,844.56,0.7964408]
[1757001977966,0.20590254,845.19,844.55,0.7964408]
[1757001978763,0.20590254,845.19,844.56,0.7964408]
[1757001979969,0.20590254,845.19,843.56,2.6548026]
[1757001979970,0.20590254,845.19,844.54,0.7964408]
[1757001981566,0.20590254,845.19,844.53,0.7964408]
[1757001981773,0.20590254,845.19,844.52,0.7964408]
[1757001982167,0.20590254,845.19,844.53,0.7964408]
[1757001982371,0.20590254,845.19,844.52,0.7964408]
[1757001982873,0.20590254,845.19,844.53,0.7964408]
[1757001983072,0.20590254,845.19,844.5,0.7964408]
[1757001984973,0.20590254,845.19,844.51,0.7964408]
[1757001985372,0.20590254,845.19,844.51,0.79460823]
[1757001987475,1.00329932,845.19,844.52,0.79460823]
[1757001992379,0.79739678,845.18,844.53,0.79460823]
[1757001992680,0.79739678,845.18,844.52,0.79460823]
[1757001992881,0.79739678,845.16,844.54,0.79460823]
[1757001993879,0.20590254,845.19,844.5,0.79460823]
[1757001994080,0.20590254,845.19,844.48,0.79460823]
[1757001994280,0.20590254,845.19,844.49,0.79460823]
[1757001994580,0.20590254,845.19,843.28,2.6548026]
[1757001994581,0.20590254,845.19,844.48,0.79460823]
[1757001996082,0.20590254,845.19,844.49,0.79460823]
[1757001999183,0.20590254,845.19,844.5,0.79460823]
[1757001999686,0.20590254,845.19,844.46,0.79460823]
[1757002000189,0.20590254,845.19,844.47,0.79460823]
[1757002003192,0.20590254,845.19,844.48,0.79460823]
[1757002003891,0.79739678,845.18,844.5,0.79460823]
[1757002004188,0.79739678,845.18,844.51,0.79460823]
[1757002004388,0.79739678,845.17,844.51,0.79460823]
[1757002005290,0.79739678,845.16,844.52,0.79460823]
[1757002005594,0.79739678,845.16,844.5,0.79460823]
[1757002006390,0.79739678,845.16,844.31,1.061921]
[1757002006391,0.79739678,845.08,844.46,0.79460823]
[1757002007696,0.79739678,845.08,844.45,0.79460823]
[1757002007996,0.20590254,845.19,844.42,0.79460823]
[1757002007997,0.79739678,845.02,844.42,0.79460823]
[1757002008191,0.79739678,845.02,844.25,1.061921]
[1757002008192,0.79739678,844.99,844.38,0.79460823]
[1757002008492,0.79739678,845.0,844.37,0.79460823]
[1757002008692,0.79739678,844.98,844.35,0.79460823]
[1757002009191,0.79739678,844.99,844.34,0.79460823]
[1757002009391,0.79739678,844.99,844.33,0.79460823]
[1757002009892,0.79739678,844.96,844.31,0.79460823]
[1757002010095,0.79739678,844.98,844.29,0.79460823]
[1757002010396,0.79739678,844.96,844.3,0.79460823]
[1757002010593,0.79739678,844.96,844.31,0.79460823]
[1757002010794,0.79739678,844.91,844.26,0.79460823]
[1757002011296,0.79739678,844.93,844.24,0.79460823]
[1757002012498,0.79739678,844.94,844.23,0.79460823]
[1757002012698,0.79739678,844.97,844.21,0.79460823]
[1757002013199,0.79739678,844.97,844.02,1.061921]
[1757002013200,0.79739678,844.98,844.2,0.79460823]
[1757002013592,0.79739678,845.0,844.19,0.79460823]
[1757002014098,0.79739678,845.0,844.18,0.79460823]
[1757002015300,1.26995474,845.19,844.17,0.79460823]
[1757002015301,0.79739678,845.01,844.17,0.79460823]
[1757002016201,0.79739678,845.02,844.17,0.79460823]
[1757002017100,0.79739678,845.01,844.17,0.79460823]
[1757002017306,0.79739678,845.02,844.16,0.79460823]
[1757002018103,0.79739678,845.03,844.16,0.79460823]
[1757002018300,0.79739678,845.04,844.17,0.79460823]
[1757002019203,0.79739678,845.05,844.16,0.79460823]
[1757002021705,0.79739678,845.06,844.15,0.79460823]
[1757002022403,0.79739678,845.08,844.13,0.79460823]
[1757002022605,0.79739678,845.07,844.14,0.79460823]
[1757002023006,0.79739678,845.08,844.14,0.79460823]
[1757002024005,0.79739678,845.08,844.15,0.79460823]
[1757002024403,0.79739678,845.11,844.11,0.79460823]
[1757002025306,0.79739678,845.11,844.1,0.79460823]
[1757002025508,0.79739678,845.09,844.09,0.79460823]
[1757002025705,0.79739678,845.1,844.09,0.79460823]
[1757002026204,0.79739678,845.1,844.08,0.79460823]
[1757002026607,0.79739678,845.11,844.08,0.79460823]
[1757002027807,0.79739678,845.11,844.09,0.79460823]
[1757002028608,0.79739678,845.12,844.08,0.79460823]
[1757002029709,0.79739678,845.11,844.08,0.79460823]
[1757002030405,0.79739678,845.11,844.07,0.79460823]
[1757002031407,0.79739678,845.1,844.06,0.79460823]
[1757002031910,0.79739678,845.11,844.06,0.79460823]
[1757002032510,0.79739678,845.09,844.06,0.79460823]
[1757002032710,0.79739678,845.09,844.07,0.79460823]
[1757002034410,0.79739678,845.05,844.09,0.79460823]
[1757002035213,0.79739678,845.05,844.1,0.79460823]
[1757002035610,0.79739678,845.04,844.1,0.79460823]
[1757002035811,0.79739678,845.05,844.12,0.79460823]
[1757002036009,0.79739678,845.04,844.12,0.79460823]
[1757002037815,0.79739678,845.03,844.13,0.79460823]
[1757002038515,0.79739678,845.02,844.13,0.79460823]
[1757002039817,0.79739678,845.01,844.15,0.79460823]
[1757002040218,0.79739678,845.0,844.15,0.79460823]
[1757002040415,0.79739678,845.01,844.16,0.79460823]
[1757002040618,0.79739678,845.03,844.17,0.79460823]
[1757002041020,0.79739678,845.02,844.18,0.79460823]
[1757002041514,0.79739678,845.02,844.17,0.79460823]
[1757002041721,0.79739678,845.01,844.17,0.79460823]
[1757002041921,0.79739678,844.98,844.19,0.79460823]
[1757002042223,0.79739678,844.98,844.2,0.79460823]
[1757002042621,0.79739678,845.06,844.14,0.79460823]
[1757002042818,0.79739678,845.14,844.22,0.79460823]
[1757002043018,0.79739678,845.16,844.23,0.79460823]
[1757002043822,0.79739678,845.15,844.22,0.79460823]
[1757002044222,0.79739678,845.14,844.22,0.79460823]
[1757002044722,0.79739678,845.15,844.22,0.79460823]
[1757002045618,0.79739678,845.16,844.21,0.79460823]
[1757002047219,0.79739678,845.16,844.22,0.79460823]
[1757002048121,0.79739678,845.15,844.22,0.79460823]
[1757002050423,0.79739678,845.15,844.23,0.79460823]
[1757002050627,0.79605195,845.15,844.23,0.79410961]
[1757002051425,0.79605195,845.14,844.23,0.79410961]
[1757002052626,0.79605195,845.11,844.25,0.79410961]
[1757002052828,0.79605195,845.1,844.26,0.79410961]
[1757002053129,0.79605195,845.09,844.27,0.79410961]
[1757002054529,0.79605195,845.09,844.28,0.79410961]
[1757002055231,0.79605195,845.08,844.29,0.79410961]
[1757002055632,0.79605195,845.05,844.31,0.79410961]
[1757002055828,0.20598663,844.89,844.31,0.79410961]
[1757002058131,0.20598663,844.89,844.32,0.79410961]
[1757002058431,0.20598663,844.89,844.33,0.79410961]
[1757002058635,0.20598663,844.89,844.31,0.79410961]
[1757002059236,0.20598663,844.89,844.23,0.79410961]
[1757002061231,0.20598663,844.89,844.24,0.79410961]
[1757002062137,0.20598663,844.89,844.25,0.79410961]
[1757002064137,0.20598663,844.89,844.26,0.79410961]
[1757002065235,0.20598663,844.89,844.27,0.79410961]
[1757002065532,0.20598663,844.89,844.3,0.79410961]
[1757002066337,0.20598663,844.89,844.07,1.061921]
[1757002066338,0.20598663,844.89,844.31,0.79410961]
[1757002069138,0.20598663,844.89,844.36,0.79410961]
[1757002069835,0.20598663,844.89,844.38,0.79410961]
[1757002070941,0.20598663,844.89,844.37,0.79410961]
[1757002072738,0.20598663,844.89,844.24,0.79410961]
[1757002077747,0.20598663,844.89,844.25,0.79410961]
[1757002078745,0.20598663,844.89,844.33,0.79410961]
[1757002079548,0.20598663,844.89,844.35,0.79410961]
[1757002080248,0.20598663,844.89,844.37,0.79410961]
[1757002080646,0.20598663,844.89,844.38,0.79410961]
[1757002085050,0.20598663,844.89,844.38,0.79683263]
[1757002086146,0.20598663,844.89,844.35,0.79683263]
[1757002086350,0.20598663,844.89,844.34,0.79683263]
[1757002086751,1.00385102,844.89,844.32,0.79683263]
[1757002087347,0.79786439,844.88,844.32,0.79683263]
[1757002087551,0.20598663,844.89,844.29,0.79683263]
[1757002090852,0.20598663,844.89,844.3,0.79683263]
[1757002094752,0.79786439,844.87,844.33,0.79683263]
[1757002095449,0.79786439,844.87,844.34,0.79683263]
[1757002095952,0.79786439,844.87,844.33,0.79683263]
[1757002096352,0.79786439,844.86,844.33,0.79683263]
[1757002097351,0.79786439,844.87,844.33,0.79683263]
[1757002097850,0.20598663,844.89,844.3,0.79683263]
[1757002098450,0.20598663,844.89,843.58,0.20598663]
[1757002098451,0.20598663,844.89,844.36,0.79683263]
[1757002100054,0.20598663,844.89,844.37,0.79683263]
[1757002100252,0.20598663,844.89,844.36,0.79683263]
[1757002100952,0.20598663,844.89,844.37,0.79683263]
[1757002101552,0.20598663,844.89,844.35,0.79683263]
[1757002102958,0.20598663,844.89,844.36,0.79683263]
[1757002104957,0.20598663,844.89,844.35,0.79683263]
[1757002107756,0.20598663,844.89,844.36,0.79683263]
[1757002108457,0.20598663,844.89,844.38,0.79683263]
[1757002108661,0.20598663,844.89,844.4,0.79683263]
[1757002108960,0.20598663,844.89,844.42,0.79683263]
[1757002109362,0.20598663,844.89,844.45,0.79683263]
[1757002109959,0.20598663,844.89,844.48,0.79683263]
[1757002110358,0.20598663,844.89,844.49,0.79683263]
[1757002110762,0.20598663,844.89,844.48,0.79683263]
[1757002110961,0.20598663,844.89,844.53,0.79683263]
[1757002111459,0.20598663,844.89,844.52,0.79683263]
[1757002113467,0.20598663,844.89,844.51,0.79683263]
[1757002114367,0.20598663,844.89,844.5,0.79683263]
[1757002114563,0.20598663,844.89,843.58,0.20598663]
[1757002114564,0.20598663,844.89,844.51,0.79683263]
[1757002115164,0.20598663,844.89,844.48,0.79683263]
[1757002115370,0.20598663,844.89,844.47,0.79683263]
[1757002116369,0.20598663,844.89,844.46,0.79683263]
[1757002118475,0.20598663,844.89,844.45,0.79683263]
[1757002119879,0.20598663,844.89,844.46,0.79683263]
[1757002120379,0.20598663,844.89,844.49,0.79683263]
[1757002122480,0.20598663,844.89,844.48,0.79683263]
[1757002124280,0.20598663,844.89,844.43,0.79683263]
[1757002124482,0.20598663,844.89,844.41,0.79683263]
[1757002124676,0.20598663,844.89,844.36,0.79683263]
[1757002125676,0.20598663,844.89,844.35,0.79683263]
[1757002125876,0.20598663,844.89,844.36,0.79683263]
[1757002126476,0.20598663,844.89,844.35,0.79683263]
[1757002129185,0.20598663,844.89,844.36,0.79683263]
[1757002130481,0.20598663,844.89,844.3,0.79683263]
[1757002130680,0.20598663,844.89,844.28,0.79683263]
[1757002134583,0.20598663,844.89,844.29,0.79683263]
[1757002135585,0.20598663,844.89,844.25,0.79683263]
[1757002135786,0.20598663,844.89,844.23,0.79683263]
[1757002136284,0.20598663,844.89,844.21,0.79683263]
[1757002138286,0.20598663,844.89,844.14,0.79683263]
[1757002138788,0.20598663,844.89,844.13,0.79683263]
[1757002139391,0.20598663,844.89,844.16,0.79683263]
[1757002139591,0.20598663,844.89,844.17,0.79683263]
[1757002140692,0.20598663,844.89,844.18,0.79683263]
[1757002141491,1.00385102,844.89,844.21,0.79683263]
[1757002141689,1.00385102,844.89,844.06,1.061921]
[1757002141690,0.20598663,844.89,844.15,0.79683263]
[1757002141988,0.20598663,844.89,844.18,0.79683263]
[1757002142192,0.20598663,844.89,844.19,0.79683263]
[1757002142693,0.20598663,844.89,844.25,0.79683263]
[1757002145696,0.20598663,844.89,844.24,0.79683263]
[1757002145892,0.20598663,844.89,844.28,0.79683263]
[1757002146095,0.20598663,844.89,844.24,0.79683263]
[1757002147396,0.20598663,844.89,844.25,0.79683263]
[1757002147896,0.20598663,844.89,844.05,1.061921]
[1757002147897,0.20598663,844.89,844.26,0.79683263]
[1757002148197,0.20598663,844.89,844.22,0.79683263]
[1757002148393,0.20598663,844.89,844.25,0.79683263]
[1757002148697,0.20598663,844.89,844.35,0.79683263]
[1757002149193,0.20598663,844.89,844.37,0.79683263]
[1757002149898,0.20598663,844.89,844.38,0.79683263]
[1757002150098,0.20598663,844.89,844.4,0.79683263]
[1757002150298,0.20598663,844.89,844.41,0.79683263]
[1757002150499,0.20598663,844.89,844.4,0.79683263]
[1757002150798,0.20598663,844.89,844.37,0.79683263]
[1757002151193,0.20598663,844.89,844.38,0.79683263]
[1757002154299,0.20598663,844.89,844.39,0.79683263]
[1757002154500,0.20598663,844.89,844.44,0.79683263]
[1757002155401,0.20598663,844.89,844.45,0.79683263]
[1757002155797,0.20598663,844.89,844.5,0.79683263]
[1757002158904,0.20598663,844.89,844.51,0.79683263]
[1757002159307,0.20598663,844.89,844.52,0.79683263]
[1757002159705,0.20598663,844.89,844.53,0.79683263]
[1757002160210,0.20598663,844.89,844.52,0.79683263]
[1757002161211,0.20598663,844.89,844.54,0.79683263]
[1757002161410,0.20598663,844.89,844.53,0.79683263]
[1757002162613,0.20598663,844.89,844.54,0.79683263]
[1757002163613,0.20598663,844.89,844.52,0.79683263]
[1757002165814,0.20598663,844.89,844.51,0.79683263]
[1757002167013,0.20598663,844.89,844.52,0.79683263]
[1757002169315,0.20598663,844.89,844.51,0.79683263]
[1757002169612,0.79786439,845.27,844.51,0.79683263]
[1757002169814,0.20591899,845.0,844.53,0.79683263]
[1757002170012,0.79786439,845.46,844.49,0.79683263]
[1757002170412,0.79786439,845.46,844.26,1.061921]
[1757002170413,0.20590985,845.0,844.48,0.79683263]
[1757002170614,0.79786439,845.47,844.48,0.79683263]
[1757002170813,0.20590863,845.0,844.48,0.79683263]
[1757002171115,0.79786439,845.47,844.48,0.79683263]
[1757002171318,0.20590863,845.0,844.48,0.79683263]
[1757002171717,0.79786439,845.47,844.48,0.79683263]
[1757002172015,0.20590863,845.0,844.48,0.79683263]
[1757002172218,0.79786439,845.47,844.48,0.79683263]
[1757002172418,0.20590863,845.0,844.47,0.79683263]
[1757002172614,0.79786439,845.48,844.47,0.79683263]
[1757002173017,0.20590863,845.0,844.47,0.79683263]
[1757002173219,0.79786439,845.48,844.47,0.79683263]
[1757002173418,0.20590863,845.0,844.47,0.79683263]
[1757002173623,0.79786439,845.49,844.47,0.79683263]
[1757002174126,0.20590863,845.0,844.47,0.79683263]
[1757002174325,0.79786439,845.49,844.47,0.79683263]
[1757002174526,0.79786439,845.49,844.46,0.79683263]
[1757002174821,0.20590802,845.0,844.49,0.79683263]
[1757002175027,0.79786439,845.48,844.49,0.79683263]
[1757002175221,0.20590802,845.0,844.49,0.79683263]
[1757002175422,0.79786439,845.48,844.48,0.79683263]
[1757002175725,0.20590741,845.0,844.48,0.79683263]
[1757002176025,2.6601305,846.81,843.58,0.20598663]
[1757002176026,0.79786439,845.4,844.53,0.79683263]
[1757002176225,0.20590802,845.0,844.53,0.79683263]
[1757002176426,0.79786439,845.4,844.53,0.79683263]
[1757002176722,0.20590985,845.0,844.53,0.79683263]
[1757002176924,0.79786439,845.4,844.53,0.79683263]
[1757002177220,0.20590985,845.0,844.53,0.79683263]
[1757002177423,0.79786439,845.41,844.52,0.79683263]
[1757002177621,0.79786439,845.4,844.52,0.79683263]
[1757002177824,0.20590985,845.0,844.52,0.79683263]
[1757002178128,0.79786439,845.4,844.52,0.79683263]
[1757002178324,0.20591046,845.0,844.52,0.79683263]
[1757002178525,0.79786439,845.41,844.52,0.79683263]
[1757002178727,0.20590985,845.0,844.55,0.79683263]
[1757002179124,0.79786439,845.42,844.55,0.79683263]
[1757002179329,0.20590741,845.0,844.55,0.79683263]
[1757002179624,0.79786439,845.42,844.55,0.79683263]
[1757002179928,0.20590741,845.0,844.57,0.79683263]
[1757002180124,0.79786439,845.39,844.57,0.79683263]
[1757002180324,0.20590741,845.21,844.57,0.79683263]
[1757002181428,0.20590741,845.21,844.56,0.79683263]
[1757002182429,0.20590741,845.21,844.55,0.79683263]
[1757002185125,0.20590741,845.21,844.59,0.79683263]
[1757002185329,0.20590741,845.21,844.44,1.061921]
[1757002185330,0.20590741,845.21,844.58,0.79683263]
[1757002187430,0.20590741,845.21,844.59,0.79683263]
[1757002189333,0.20590741,845.21,844.49,0.79683263]
[1757002190335,0.20590741,845.21,844.51,0.79683263]
[1757002191836,0.20590741,845.21,844.52,0.79683263]
[1757002192134,0.20590741,845.21,843.58,0.20598663]
[1757002192135,0.20590741,845.21,844.53,0.79683263]
[1757002192336,0.20590741,845.21,844.52,0.79683263]
[1757002192531,0.20590741,845.21,844.54,0.79683263]
[1757002192737,0.20590741,845.21,844.63,0.79683263]
[1757002193335,0.20590741,845.21,844.68,0.79683263]
[1757002193837,0.20590741,845.21,844.69,0.79683263]
[1757002194238,0.20590741,845.21,844.68,0.79683263]
[1757002195033,0.20590741,845.21,844.69,0.79683263]
[1757002195234,0.20590741,845.21,844.68,0.79683263]
[1757002196833,0.20590741,845.21,844.69,0.79683263]
[1757002199540,0.20590741,845.21,844.7,0.79683263]
[1757002200635,0.20590741,845.21,844.56,1.061921]
[1757002200636,0.20590741,845.21,844.69,0.79683263]
[1757002201639,0.20590741,845.21,844.68,0.79683263]
[1757002202337,0.20590741,845.21,844.69,0.79683263]
[1757002205342,0.20590741,845.21,844.7,0.79683263]
[1757002206437,0.20590741,845.21,844.72,0.79683263]
[1757002207440,0.20590741,845.21,844.73,0.79683263]
[1757002209642,0.20590741,845.21,844.63,0.79683263]
[1757002211142,0.20590741,845.21,844.62,0.79683263]
[1757002211345,0.20590741,845.21,844.63,0.79683263]
[1757002214746,0.20590741,845.21,844.64,0.79683263]
[1757002214945,0.20590741,845.21,844.51,0.79683263]
[1757002217644,0.20590741,845.21,844.52,0.79683263]
[1757002218049,0.20590741,845.21,844.53,0.79683263]
[1757002218245,0.20590741,845.21,844.55,0.79683263]
[1757002218847,0.20590741,845.21,844.61,0.79683263]
[1757002219145,0.20590741,845.21,844.64,0.79683263]
[1757002219751,0.20590741,845.21,844.65,0.79683263]
[1757002219950,0.20590741,845.21,844.13,1.5928816]
[1757002219951,0.20590741,845.21,844.68,0.79683263]
[1757002220650,0.20590741,845.21,844.74,0.79683263]
[1757002221248,0.20590741,845.21,844.78,0.79683263]
[1757002221452,0.20590741,845.21,844.58,0.79683263]
[1757002223354,0.20590741,845.21,844.59,0.79683263]
[1757002226253,0.20590741,845.21,844.6,0.79683263]
[1757002226957,0.20590741,845.21,844.61,0.79683263]
[1757002227858,0.20590741,845.21,844.63,0.79683263]
[1757002228558,0.20590741,845.21,844.77,0.79683263]
[1757002228760,0.20590741,845.21,844.79,0.79683263]
[1757002229054,0.20590741,845.21,844.8,0.79683263]
[1757002231057,0.20590741,845.21,844.81,0.79683263]
[1757002231556,0.20590741,845.21,844.66,1.061921]
[1757002231557,0.20590741,845.21,844.82,0.79683263]
[1757002231755,0.20590741,845.21,844.81,0.79683263]
[1757002232259,0.20590741,845.21,844.82,0.79683263]
[1757002234364,0.20590741,845.21,844.83,0.79683263]
[1757002235663,0.20590741,845.21,844.81,0.79683263]
[1757002235863,0.20590741,845.21,844.82,0.79683263]
[1757002236357,0.20590741,845.21,844.8,0.79683263]
[1757002238363,0.20590741,845.21,844.81,0.79683263]
[1757002240465,0.20590741,845.21,844.82,0.79683263]
[1757002241061,0.20590741,845.21,844.81,0.79683263]
[1757002241361,0.20590741,845.21,844.82,0.79683263]
[1757002242365,0.20590741,845.21,844.8,0.79683263]
[1757002242866,0.20590741,845.21,844.79,0.79683263]
[1757002243366,0.20590741,845.21,844.8,0.79683263]
[1757002244361,0.20590741,845.21,844.81,0.79683263]
[1757002245568,0.20590741,845.21,844.82,0.79683263]
[1757002246363,0.20590741,845.21,844.83,0.79683263]
[1757002247569,0.20590741,845.21,844.84,0.79683263]
[1757002248371,0.20590741,845.21,844.86,0.79683263]
[1757002252373,0.20590741,845.21,844.88,0.79835664]
[1757002252773,0.20590741,845.21,844.9,0.79835664]
[1757002255571,0.20590741,845.21,844.89,0.79835664]
[1757002256671,0.20590741,845.21,844.88,0.79835664]
[1757002258577,0.20590741,845.21,844.87,0.79835664]
[1757002258877,0.20590741,845.21,844.8,0.79835664]
[1757002260078,0.20590741,845.21,844.75,0.79864887]
[1757002260579,0.20590741,845.21,844.71,0.79864887]
[1757002260778,0.20590741,845.21,844.78,0.79864887]
[1757002260978,0.20590741,845.21,844.62,1.061921]
[1757002260979,1.00459014,845.21,844.73,0.79864887]
[1757002261480,0.20590741,845.21,844.71,0.79864887]
[1757002262077,0.20590741,845.21,844.7,0.79864887]
[1757002262578,0.20590741,845.21,844.67,0.79864887]
[1757002263380,0.20590741,845.21,844.66,0.79864887]
[1757002264382,0.20590741,845.21,844.65,0.79864887]
[1757002265382,0.20590741,845.21,844.64,0.79864887]
[1757002265882,0.20590741,845.21,844.63,0.79864887]
[1757002266681,0.20590741,845.21,844.62,0.79864887]
[1757002268390,0.20590741,845.21,844.61,0.79864887]
[1757002269490,0.20590741,845.21,844.6,0.79864887]
[1757002269985,0.20590741,845.21,844.61,0.79864887]
[1757002270284,0.20590741,845.21,844.6,0.79864887]
[1757002270789,0.20590741,845.21,844.59,0.79864887]
[1757002271991,0.20590741,845.21,844.61,0.79864887]
[1757002272491,0.20590741,845.21,844.63,0.79864887]
[1757002273290,0.20590741,845.21,844.62,0.79864887]
[1757002274988,0.20590741,845.21,844.59,0.79864887]
[1757002275388,0.20590741,845.21,844.58,0.79864887]
[1757002275989,0.20590741,845.21,844.56,0.79864887]
[1757002277593,0.20590741,845.21,844.47,0.79864887]
[1757002277903,0.20590741,845.21,844.46,0.79864887]
[1757002278093,0.20590741,845.21,844.48,0.79864887]
[1757002278293,0.20590741,845.21,844.49,0.79864887]
[1757002278493,0.20590741,845.21,844.48,0.79864887]
[1757002280797,0.20590741,845.21,844.47,0.79864887]
[1757002281298,0.20590741,845.21,844.46,0.79864887]
[1757002281904,0.20590741,845.21,844.47,0.79864887]
[1757002282300,0.20590741,845.21,844.46,0.79864887]
[1757002284501,0.20590741,845.21,844.45,0.79864887]
[1757002285306,0.20590741,845.21,844.46,0.79864887]
[1757002285808,0.20590741,845.21,844.45,0.79864887]
[1757002287007,0.20590741,845.21,844.44,0.79864887]
[1757002289609,0.20590741,845.21,844.45,0.79864887]
[1757002289908,0.20590741,845.21,844.2,0.79864887]
[1757002290112,0.20590741,845.21,843.97,0.79864887]
[1757002290312,0.20590741,845.21,843.95,0.79864887]
[1757002291312,0.20590741,845.21,843.96,0.79864887]
[1757002291510,0.20590741,845.21,843.94,0.79864887]
[1757002292109,0.20590741,845.21,843.95,0.79864887]
[1757002292407,0.20590741,845.21,843.94,0.79864887]
[1757002293311,0.20590741,845.21,843.93,0.79864887]
[1757002293711,0.20590741,845.21,843.94,0.79864887]
[1757002294410,0.20590741,845.21,843.93,0.79864887]
[1757002294611,0.20590741,845.21,843.96,0.79864887]
[1757002296015,0.20590741,845.21,844.01,0.79864887]
[1757002296314,0.20590741,845.21,844.02,0.79864887]
[1757002299518,0.20590741,845.21,844.04,0.79864887]
[1757002299813,0.20590741,845.21,844.07,0.79864887]
[1757002300613,0.20590741,845.21,844.08,0.79864887]
[1757002300917,0.20590741,845.21,844.07,0.79864887]
[1757002302214,0.20590741,845.21,844.08,0.79864887]
[1757002303421,0.20590741,845.21,844.09,0.79864887]
[1757002306321,0.20590741,845.21,844.08,0.79864887]
[1757002306722,0.20590741,845.21,844.1,0.79864887]
[1757002307321,0.20590741,845.21,844.11,0.79864887]
[1757002307820,0.20590741,845.21,844.1,0.79864887]
[1757002311123,0.20590741,845.21,844.07,0.79864887]
[1757002311323,0.20590741,845.21,844.08,0.79864887]
[1757002311626,0.20590741,845.21,844.12,0.79864887]
[1757002311922,0.20590741,845.21,844.13,0.79864887]
[1757002312422,0.20590741,845.21,844.14,0.79864887]
[1757002314325,0.20590741,845.21,844.15,0.79864887]
[1757002315027,0.20590741,845.21,844.19,0.79864887]
[1757002316526,0.20590741,845.21,844.2,0.79864887]
[1757002316927,0.20590741,845.21,843.85,0.20587209]
[1757002316928,0.20590741,845.21,844.22,0.79864887]
[1757002317128,0.20590741,845.21,844.23,0.79864887]
[1757002317928,0.20590741,845.21,843.85,0.20587209]
[1757002317929,0.20590741,845.21,844.25,0.79864887]
[1757002318331,0.20590741,845.21,844.26,0.79864887]
[1757002318532,0.20590741,845.21,844.25,0.79864887]
[1757002319433,0.20590741,845.21,844.26,0.79864887]
[1757002320931,0.20590741,845.21,844.25,0.79864887]
[1757002321836,0.20590741,845.21,844.26,0.79864887]
[1757002323337,0.20590741,845.21,844.27,0.79864887]
[1757002323535,0.79868273,845.2,844.27,0.79864887]
[1757002324438,0.79868273,845.2,844.28,0.79864887]
[1757002325139,0.20590741,845.21,844.24,0.79864887]
[1757002327346,0.20590741,845.21,844.25,0.79864887]
[1757002328046,0.20590741,845.21,843.85,0.20587209]
[1757002328047,0.20590741,845.21,844.24,0.79864887]
[1757002328246,0.20590741,845.21,844.28,0.79864887]